[Event "46th GRE-chT Premier 2018"]
[Site "Rio Achaia"]
[Date "2018.07.11"]
[Round "2"]
[White "Maier, Christian"]
[Black "Hrisomalis, Theodoros"]
[Result "1-0"]
[ECO "A20"]
[WhiteElo "2378"]
[BlackElo "2163"]
[Annotator "ChessBase"]
[PlyCount "161"]
[EventDate "2018.07.10"]
[EventType "team-tourn"]
[EventCountry "GRE"]
[SourceTitle "playchess.com"]
[Source "ChessBase"]
[SourceQuality "1"]
[TimeControl "40/5400+30:1800+30"]

1. c4 {[%emt 0:00:18]} e5 {[%emt 0:02:51]} 2. g3 {[%emt 0:00:48]} Nf6 {[%emt 0:01:19]} 3. Bg2 {[%emt 0:00:08]} c6 {[%emt 0:00:16]} 4. Nf3 {[%emt 0:02:21]} e4 {[%emt 0:03:03]} 5. Nd4 {[%emt 0:01:23]} d5 {[%emt 0:00:05]} 6. cxd5 {[%emt 0:00:34]} cxd5 {[%emt 0:00:12]} 7. Nc3 {[%emt 0:02:36]} Nc6 {[%emt 0:15:52]} 8. Nxc6 {[%emt 0:01:44]} bxc6 {[%emt 0:00:31]} 9. d3 {[%emt 0:00:36]} exd3 {[%emt 0:05:08]} 10. Qxd3 {[%emt 0:00:18]} Be7 {[%emt 0:02:17]} 11. O-O {[%emt 0:01:42]} O-O {[%emt 0:00:32]} 12. Be3 {[%emt 0:05:37]} a5 {[%emt 0:05:28]} 13. Na4 {[%emt 0:02:54]} Re8 {[%emt 0:04:41]} 14. Qc2 {[%emt 0:02:33]} Rb8 {[%emt 0:04:17]} 15. Rfd1 {[%emt 0:02:25]} Bd7 {[%emt 0:06:49]} 16. Rac1 {[%emt 0:03:53]} Rb4 {[%emt 0:02:47]} 17. b3 {[%emt 0:01:19]} Rb5 {[%emt 0:05:05]} 18. Nc5 {[%emt 0:07:10]} Bg4 {[%emt 0:08:34]} 19. f3 {[%emt 0:07:33]} Bc8 {[%emt 0:01:59]} 20. Bf2 {[%emt 0:00:23]} Qc7 {[%emt 0:01:28]} 21. Bf1 {[%emt 0:01:00]} Rb8 {[%emt 0:01:24]} 22. Qd3 {[%emt 0:00:57]} Ra8 {[%emt 0:03:16]} 23. Rc3 {[%emt 0:06:57]} Nd7 {[%emt 0:06:51]} 24. Nxd7 {[%emt 0:08:00]} Qxd7 {[%emt 0:00:02]} 25. Qc2 {[%emt 0:00:25]} Bb7 {[%emt 0:00:50]} 26. Bc5 {[%emt 0:01:49]} Bf6 {[%emt 0:00:56]} 27. Bd4 {[%emt 0:01:14]} Be7 {[%emt 0:01:41]} 28. Bc5 {[%emt 0:03:30]} Bf6 {[%emt 0:00:06]} 29. Rcd3 {[%emt 0:06:47]} Ba6 {[%emt 0:04:42]} 30. Re3 {[%emt 0:03:44]} Rxe3 {[%emt 0:01:12]} 31. Bxe3 {[%emt 0:00:05]} Qe8 {[%emt 0:02:45]} 32. Kf2 {[%emt 0:01:01]} Bc8 {[%emt 0:00:47]} 33. Bd4 {[%emt 0:01:18]} Qe6 {[%emt 0:02:13]} 34. Qc3 {[%emt 0:01:20]} a4 {[%emt 0:01:57]} 35. bxa4 {[%emt 0:05:37]} Rxa4 {[%emt 0:00:21]} 36. Bxf6 {[%emt 0:00:06]} gxf6 {[%emt 0:01:21]} 37. Qb3 {[%emt 0:01:17]} Ra8 {[%emt 0:00:35]} 38. Rd2 {[%emt 0:05:09]} Ba6 {[%emt 0:02:19]} 39. a4 {[%emt 0:08:32]} Bc4 {[%emt 0:00:48]} 40. Qb4 {[%emt 0:00:00]} Re8 {[%emt 0:00:00]} 41. Qc5 {[%emt 0:01:47]} Qe7 {[%emt 0:07:11]} 42. Qxc6 {[%emt 0:02:11]} Qe3+ {[%emt 0:00:43]} 43. Kg2 {[%emt 0:00:08]} Re6 {[%emt 0:01:49]} 44. Qc8+ {[%emt 0:00:28]} Kg7 {[%emt 0:05:57]} 45. Rb2 {[%emt 0:04:14]} Ba6 {[%emt 0:00:06]} 46. Qc2 {[%emt 0:01:07]} d4 {[%emt 0:00:53]} 47. Qd2 {[%emt 0:00:57]} Qe5 {[%emt 0:01:06]} 48. Qf4 {[%emt 0:01:24]} Qd5 {[%emt 0:08:41]} 49. Qg4+ {[%emt 0:04:21]} Kh6 {[%emt 0:00:24]} 50. Rd2 {[%emt 0:04:39]} Rd6 {[%emt 0:00:57]} 51. Qf4+ {[%emt 0:02:05]} Kg7 {[%emt 0:00:33]} 52. Qg4+ {[%emt 0:06:53]} Kh6 {[%emt 0:00:13]} 53. Rb2 {[%emt 0:00:24]} Re6 {[%emt 0:01:32]} 54. Qf4+ {[%emt 0:00:31]} Kg7 {[%emt 0:00:21]} 55. Qd2 {[%emt 0:00:07]} Re3 {[%emt 0:05:24]} 56. Rb4 {[%emt 0:01:23]} Bc4 {[%emt 0:00:04]} 57. Qc2 {[%emt 0:02:50]} Rc3 {[%emt 0:00:20]} 58. Qe4 {[%emt 0:00:18]} Qxe4 {[%emt 0:03:03]} 59. fxe4 {[%emt 0:00:20]} Rc2 {[%emt 0:00:02]} 60. Kf3 {[%emt 0:00:10]} Rc3+ {[%emt 0:00:43]} 61. Kf2 {[%emt 0:01:43]} Rc2 {[%emt 0:00:05]} 62. Ke1 {[%emt 0:00:25]} Rc1+ {[%emt 0:01:33]} 63. Kd2 {[%emt 0:00:12]} Rc3 {[%emt 0:01:15]} 64. Bg2 {[%emt 0:00:37]} Kf8 {[%emt 0:00:35]} 65. e3 {[%emt 0:00:12]} Rd3+ {[%emt 0:00:19]} 66. Kc1 {[%emt 0:02:45]} dxe3 {[%emt 0:00:39]} 67. Bf1 {[%emt 0:01:02]} Rd2 {[%emt 0:01:09]} 68. Bxc4 {[%emt 0:00:26]} Rxh2 {[%emt 0:00:12]} 69. Rb2 {[%emt 0:00:08]} Rh1+ {[%emt 0:00:28]} 70. Kc2 {[%emt 0:00:05]} Rg1 {[%emt 0:00:27]} 71. Be2 {[%emt 0:00:27]} Rxg3 {[%emt 0:00:21]} 72. a5 {[%emt 0:00:06]} Ke7 {[%emt 0:00:14]} 73. a6 {[%emt 0:00:08]} Rg1 {[%emt 0:00:37]} 74. Ra2 {[%emt 0:00:14]} Rg8 {[%emt 0:00:15]} 75. a7 {[%emt 0:00:53]} Ra8 {[%emt 0:00:11]} 76. Bc4 {[%emt 0:00:05]} f5 {[%emt 0:00:48]} 77. Bd5 {[%emt 0:00:09]} Rc8+ {[%emt 0:00:38]} 78. Kd3 {[%emt 0:00:08]} fxe4+ {[%emt 0:00:54]} 79. Kxe3 {[%emt 0:00:11]} Kd6 {[%emt 0:00:51]} 80. a8=Q {[%emt 0:00:10]} Rxa8 {[%emt 0:00:27]} 81. Bxa8 {[%emt 0:01:03] Kd5 Kxe4+} 1-0

[Event "46th GRE-chT Premier 2018"]
[Site "Rio Achaia"]
[Date "2018.07.11"]
[Round "2"]
[White "Videnova, Iva"]
[Black "Botsari, Anna-Maria"]
[Result "1/2-1/2"]
[ECO "B48"]
[WhiteElo "2369"]
[BlackElo "2284"]
[Annotator "NA"]
[PlyCount "67"]
[EventDate "2018.07.10"]
[EventType "team-tourn"]
[EventCountry "GRE"]
[SourceTitle "playchess.com"]
[Source "ChessBase"]
[SourceQuality "1"]
[TimeControl "40/5400+30:1800+30"]

1. e4 {[%emt 0:00:25]} c5 {[%emt 0:00:25]} 2. Nf3 {[%emt 0:00:07]} e6 {[%emt 0:00:03]} 3. d4 {[%emt 0:00:06]} cxd4 {[%emt 0:00:22]} 4. Nxd4 {[%emt 0:00:09]} Nc6 {[%emt 0:00:01]} 5. Nc3 {[%emt 0:00:11]} Qc7 {[%emt 0:00:03]} 6. Be3 {[%emt 0:00:10]} a6 {[%emt 0:00:37]} 7. Qf3 {[%emt 0:00:10]} Nf6 {[%emt 0:00:44]} 8. O-O-O {[%emt 0:00:38]} h5 {[%emt 0:01:19]} 9. h3 {[%emt 0:04:08]} Ne5 {[%emt 0:11:47]} 10. Qe2 {[%emt 0:13:22]} Ng6 {[%emt 0:15:28]} 11. g3 b5 {[%emt 0:02:46]} 12. Bg2 {[%emt 0:09:27]} Bb7 {[%emt 0:10:32]} 13. Bg5 {[%emt 0:12:30]} Be7 {[%emt 0:00:30]} 14. f4 b4 {[%emt 0:03:53]} 15. Na4 {[%emt 0:05:54]} h4 {[%emt 0:14:42]} 16. Nf5 Qc6 {[%emt 0:24:15]} 17. Nxe7 {[%emt 0:26:54]} Nxe7 18. Bxf6 {[%emt 0:02:17]} gxf6 {[%emt 0:00:51]} 19. b3 {[%emt 0:00:11]} hxg3 {[%emt 0:04:49]} 20. Qe3 {[%emt 0:03:54]} Qc7 {[%emt 0:01:35]} 21. Nb6 {[%emt 0:02:25]} Rd8 {[%emt 0:00:24]} 22. Rd2 {[%emt 0:02:01]} Bc6 {[%emt 0:03:17]} 23. Rhd1 {[%emt 0:01:49]} Rh4 {[%emt 0:00:35]} 24. Rd6 Ng6 {[%emt 0:00:00]} 25. f5 {[%emt 0:12:30]} Nf4 {[%emt 0:01:23]} 26. Kb1 {[%emt 0:00:49]} Nxg2 {[%emt 0:00:19]} 27. Qxg3 Qxb6 {[%emt 0:00:57]} 28. fxe6 {[%emt 0:01:44]} fxe6 29. Qg8+ {[%emt 0:01:01]} Ke7 {[%emt 0:00:34]} 30. Qg7+ {[%emt 0:00:09]} Ke8 {[%emt 0:00:02]} 31. Qg6+ {[%emt 0:00:59]} Ke7 {[%emt 0:00:05]} 32. Qg7+ {[%emt 0:00:04]} Ke8 33. Qg6+ {[%emt 0:01:47]} Ke7 {[%emt 0:00:09]} 34. Qg7+ 1/2-1/2

[Event "46th GRE-chT Premier 2018"]
[Site "Rio Achaia"]
[Date "2018.07.11"]
[Round "2"]
[White "Lekic, Dusan"]
[Black "Bednarek, Sylwester"]
[Result "1-0"]
[ECO "A61"]
[WhiteElo "2356"]
[BlackElo "2307"]
[Annotator "NA"]
[PlyCount "133"]
[EventDate "2018.07.10"]
[EventType "team-tourn"]
[EventCountry "GRE"]
[SourceTitle "playchess.com"]
[Source "ChessBase"]
[SourceQuality "1"]
[TimeControl "40/5400+30:1800+30"]

1. d4 {[%emt 0:02:34]} Nf6 {[%emt 0:00:00]} 2. c4 {[%emt 0:00:31]} c5 {[%emt 0:00:00]} 3. d5 {[%emt 0:00:37]} e6 {[%emt 0:00:05]} 4. Nc3 {[%emt 0:01:01]} exd5 {[%emt 0:00:10]} 5. cxd5 {[%emt 0:00:07]} d6 {[%emt 0:00:02]} 6. Nf3 {[%emt 0:00:35]} g6 {[%emt 0:00:10]} 7. Bf4 {[%emt 0:00:39]} a6 {[%emt 0:00:56]} 8. a4 {[%emt 0:00:22]} Bg7 {[%emt 0:07:21]} 9. h3 {[%emt 0:00:28]} O-O {[%emt 0:00:07]} 10. e3 {[%emt 0:00:38]} Qe7 {[%emt 0:00:13]} 11. Bd3 {[%emt 0:02:40]} Nbd7 {[%emt 0:00:14]} 12. O-O {[%emt 0:05:21]} b6 {[%emt 0:11:48]} 13. Bh2 {[%emt 0:05:08]} Ne8 {[%emt 0:00:25]} 14. e4 {[%emt 0:01:15]} g5 {[%emt 0:04:31]} 15. Qd2 {[%emt 0:07:33]} h6 {[%emt 0:01:43]} 16. Rab1 {[%emt 0:05:58]} Kh8 {[%emt 0:11:00]} 17. b4 {[%emt 0:05:04]} Rg8 {[%emt 0:00:13]} 18. bxc5 {[%emt 0:00:37]} bxc5 {[%emt 0:00:33]} 19. a5 {[%emt 0:08:22]} Nef6 {[%emt 0:17:59]} 20. Rfe1 {[%emt 0:10:01]} Nh5 {[%emt 0:06:01]} 21. Na4 {[%emt 0:05:08]} Ne5 {[%emt 0:07:37]} 22. Nxe5 {[%emt 0:01:32]} Bxe5 {[%emt 0:00:03]} 23. Bxe5+ {[%emt 0:00:23]} Qxe5 {[%emt 0:00:02]} 24. Qb2 {[%emt 0:02:03]} Qxb2 {[%emt 0:00:55]} 25. Rxb2 {[%emt 0:01:02]} Nf4 {[%emt 0:00:11]} 26. Bf1 {[%emt 0:00:16]} g4 {[%emt 0:03:01]} 27. Kh2 {[%emt 0:01:30]} h5 {[%emt 0:21:39]} 28. Rb6 {[%emt 0:05:32]} gxh3 {[%emt 0:01:42]} 29. g3 {[%emt 0:01:55]} Ng6 {[%emt 0:00:00]} 30. Be2 {[%emt 0:05:23]} Ne5 {[%emt 0:05:03]} 31. Rxd6 {[%emt 0:00:36]} h4 {[%emt 0:00:59]} 32. Rh6+ {[%emt 0:01:10]} Kg7 {[%emt 0:00:01]} 33. Rxh4 {[%emt 0:00:09]} c4 {[%emt 0:00:40]} 34. Nb6 {[%emt 0:00:43]} Ra7 {[%emt 0:00:09]} 35. Nxc4 {[%emt 0:01:56]} Ng6 {[%emt 0:00:01]} 36. Rh5 {[%emt 0:00:35]} Rc7 {[%emt 0:00:01]} 37. f4 {[%emt 0:02:50]} f6 {[%emt 0:00:35]} 38. f5 {[%emt 0:00:48]} Rxc4 {[%emt 0:00:24]} 39. Bxc4 {[%emt 0:00:35]} Ne5 {[%emt 0:00:01]} 40. Be2 {[%emt 0:00:00]} Bd7 {[%emt 0:00:00]} 41. Kxh3 {[%emt 0:09:57]} Rc8 {[%emt 0:01:01]} 42. Bxa6 {[%emt 0:01:29]} Ra8 {[%emt 0:00:11]} 43. Bf1 {[%emt 0:01:12]} Rxa5 {[%emt 0:00:03]} 44. Bg2 {[%emt 0:02:28]} Ra3 {[%emt 0:00:59]} 45. Rh4 {[%emt 0:01:19]} Nf7 {[%emt 0:03:13]} 46. Rg4+ {[%emt 0:00:34]} Kf8 {[%emt 0:00:10]} 47. Rg6 {[%emt 0:00:56]} Ra6 {[%emt 0:00:36]} 48. Rb1 {[%emt 0:01:32]} Ne5 {[%emt 0:00:34]} 49. Rb8+ {[%emt 0:00:17]} Kf7 {[%emt 0:00:01]} 50. Rh6 {[%emt 0:00:58]} Ke7 {[%emt 0:01:47]} 51. Rh7+ {[%emt 0:02:02]} Kd6 {[%emt 0:00:02]} 52. Rf8 {[%emt 0:00:23]} Kc5 {[%emt 0:00:19]} 53. Re7 {[%emt 0:03:36]} Kd4 {[%emt 0:00:51]} 54. Rxe5 {[%emt 0:00:31]} Kxe5 {[%emt 0:00:20]} 55. Rf7 {[%emt 0:00:25]} Bb5 {[%emt 0:03:39]} 56. Re7+ {[%emt 0:00:29]} Kd4 {[%emt 0:00:02]} 57. Re6 {[%emt 0:00:22]} Ra8 {[%emt 0:00:32]} 58. Rxf6 {[%emt 0:00:46]} Rh8+ {[%emt 0:06:08]} 59. Kg4 {[%emt 0:00:07]} Ke3 {[%emt 0:00:59]} 60. Rb6 {[%emt 0:02:49]} Be2+ {[%emt 0:01:54]} 61. Kg5 {[%emt 0:00:28]} Rh2 {[%emt 0:00:02]} 62. Rb3+ {[%emt 0:00:45]} Kf2 {[%emt 0:03:25]} 63. d6 {[%emt 0:01:23]} Kxg2 {[%emt 0:00:39]} 64. d7 {[%emt 0:00:09]} Rh8 {[%emt 0:00:10]} 65. e5 {[%emt 0:00:24]} Rg8+ {[%emt 0:07:36]} 66. Kf6 {[%emt 0:00:15]} Bg4 {[%emt 0:00:04]} 67. e6 {[%emt 0:00:36]} 1-0

[Event "46th GRE-chT Premier 2018"]
[Site "Rio Achaia"]
[Date "2018.07.11"]
[Round "2"]
[White "Galopoulos, Nikolaos"]
[Black "Giannoulakis, Lampros"]
[Result "1/2-1/2"]
[ECO "B23"]
[WhiteElo "2351"]
[BlackElo "2287"]
[Annotator "NA"]
[PlyCount "91"]
[EventDate "2018.07.10"]
[EventType "team-tourn"]
[EventCountry "GRE"]
[SourceTitle "playchess.com"]
[Source "ChessBase"]
[SourceQuality "1"]
[TimeControl "40/5400+30:1800+30"]

1. e4 {[%emt 0:00:00]} c5 {[%emt 0:00:00]} 2. Nc3 {[%emt 0:00:00]} d6 {[%emt 0:00:59]} 3. d4 {[%emt 0:00:00]} cxd4 {[%emt 0:00:42]} 4. Qxd4 {[%emt 0:00:00]} Nc6 {[%emt 0:00:22]} 5. Qd2 {[%emt 0:00:01]} Nf6 {[%emt 0:00:36]} 6. b3 {[%emt 0:00:06]} e6 7. Bb2 {[%emt 0:00:06]} Be7 {[%emt 0:09:51]} 8. O-O-O {[%emt 0:00:30]} O-O {[%emt 0:00:33]} 9. f4 {[%emt 0:05:11]} a6 {[%emt 0:01:08]} 10. Nf3 {[%emt 0:00:15]} b5 {[%emt 0:04:20]} 11. g4 {[%emt 0:20:10]} b4 {[%emt 0:09:20]} 12. g5 {[%emt 0:00:18]} bxc3 {[%emt 0:17:28]} 13. Qxc3 {[%emt 0:00:06]} Qb6 {[%emt 0:07:56]} 14. gxf6 {[%emt 0:00:39]} Bxf6 {[%emt 0:00:06]} 15. Qe1 {[%emt 0:03:14]} Bxb2+ {[%emt 0:01:04]} 16. Kxb2 {[%emt 0:00:01]} a5 {[%emt 0:08:10]} 17. Rxd6 {[%emt 0:09:57]} Qc5 {[%emt 0:00:59]} 18. Rd3 {[%emt 0:03:00]} Bb7 {[%emt 0:06:15]} 19. Rc3 {[%emt 0:09:13]} Qe7 {[%emt 0:06:18]} 20. a4 {[%emt 0:03:42]} Rac8 {[%emt 0:00:56]} 21. Rg1 {[%emt 0:00:58]} Nb4 {[%emt 0:07:07]} 22. Bc4 {[%emt 0:00:57]} Qf6 {[%emt 0:00:59]} 23. Qe3 {[%emt 0:01:23]} Rc7 {[%emt 0:04:38]} 24. Ne5 {[%emt 0:02:39]} Rfc8 {[%emt 0:00:11]} 25. Ng4 {[%emt 0:07:23]} Qe7 {[%emt 0:02:09]} 26. Qd4 {[%emt 0:00:22]} Kf8 {[%emt 0:01:17]} 27. Rh3 {[%emt 0:01:11]} Qc5 {[%emt 0:05:34]} 28. Qxc5+ {[%emt 0:03:26]} Rxc5 {[%emt 0:00:03]} 29. Ne5 {[%emt 0:00:05]} Bxe4 {[%emt 0:03:29]} 30. Nd7+ {[%emt 0:00:09]} Ke7 {[%emt 0:00:37]} 31. Nxc5 {[%emt 0:00:08]} Rxc5 {[%emt 0:00:02]} 32. c3 {[%emt 0:01:26]} Nd5 {[%emt 0:00:12]} 33. Bxd5 {[%emt 0:01:02]} Rxd5 {[%emt 0:00:04]} 34. Rxg7 {[%emt 0:01:27]} Rd2+ {[%emt 0:00:54]} 35. Ka3 {[%emt 0:00:20]} Rf2 {[%emt 0:01:00]} 36. Rg5 {[%emt 0:01:05]} Bf5 {[%emt 0:01:15]} 37. Rxf5 {[%emt 0:01:09]} exf5 {[%emt 0:00:04]} 38. Re3+ {[%emt 0:00:16]} Kd6 {[%emt 0:00:07]} 39. Re5 {[%emt 0:00:05]} Rxf4 {[%emt 0:00:49]} 40. Rxa5 {[%emt 0:00:00]} Rf1 {[%emt 0:00:00]} 41. Kb4 {[%emt 0:02:19]} f4 {[%emt 0:00:40]} 42. Rh5 {[%emt 0:01:51]} f3 {[%emt 0:00:21]} 43. Kc4 {[%emt 0:10:17]} Ke6 {[%emt 0:08:24]} 44. Rh3 {[%emt 0:10:00]} Kf5 {[%emt 0:12:07]} 45. Kd3 {[%emt 0:02:47]} Kg4 {[%emt 0:00:50]} 46. Kd4 1/2-1/2

[Event "46th GRE-chT Premier 2018"]
[Site "Rio Achaia"]
[Date "2018.07.11"]
[Round "2"]
[White "Kalogeris, Ioannis"]
[Black "Kontopanagos, Ioannis"]
[Result "1-0"]
[ECO "B50"]
[WhiteElo "2339"]
[BlackElo "1440"]
[Annotator "NA"]
[PlyCount "76"]
[EventDate "2018.07.10"]
[EventType "team-tourn"]
[EventCountry "GRE"]
[SourceTitle "playchess.com"]
[Source "ChessBase"]
[SourceQuality "1"]
[TimeControl "40/5400+30:1800+30"]

1. e4 {[%emt 0:04:11]} c5 {[%emt 0:00:00]} 2. Nf3 {[%emt 0:00:07]} d6 {[%emt 0:00:00]} 3. g3 {[%emt 0:00:28]} Nf6 {[%emt 0:00:24]} 4. Nc3 {[%emt 0:00:17]} e6 {[%emt 0:01:06]} 5. Bg2 {[%emt 0:00:13]} Be7 {[%emt 0:00:35]} 6. O-O {[%emt 0:00:14]} O-O {[%emt 0:00:41]} 7. d4 {[%emt 0:02:46]} cxd4 {[%emt 0:00:46]} 8. Nxd4 {[%emt 0:00:12]} a6 {[%emt 0:00:38]} 9. a4 {[%emt 0:00:35]} Qc7 {[%emt 0:04:45]} 10. a5 {[%emt 0:01:36]} Bd7 {[%emt 0:02:52]} 11. Be3 {[%emt 0:04:56]} Bc6 {[%emt 0:07:28]} 12. Qe2 {[%emt 0:03:20]} Nbd7 {[%emt 0:09:37]} 13. f4 {[%emt 0:04:53]} Rfd8 {[%emt 0:15:53]} 14. Nxc6 {[%emt 0:03:07]} bxc6 {[%emt 0:04:11]} 15. Na4 {[%emt 0:00:37]} c5 {[%emt 0:04:29]} 16. Bd2 {[%emt 0:08:44]} Ra7 {[%emt 0:04:06]} 17. Rae1 {[%emt 0:21:52]} Ne8 {[%emt 0:10:30]} 18. Bc3 {[%emt 0:07:14]} Bf8 {[%emt 0:07:00]} 19. f5 {[%emt 0:00:19]} exf5 {[%emt 0:05:57]} 20. exf5 {[%emt 0:06:30]} Ndf6 {[%emt 0:06:44]} 21. Nb6 {[%emt 0:00:52]} Rb8 {[%emt 0:04:41]} 22. b3 {[%emt 0:02:30]} Qd8 {[%emt 0:01:24]} 23. Bc6 {[%emt 0:05:38]} Nc7 {[%emt 0:04:08]} 24. Kg2 {[%emt 0:02:55]} Nfe8 {[%emt 0:02:39]} 25. Nd7 {[%emt 0:00:43]} Rc8 {[%emt 0:00:50]} 26. f6 {[%emt 0:00:12]} Ne6 {[%emt 0:00:25]} 27. Nxf8 {[%emt 0:00:31]} Kxf8 {[%emt 0:00:20]} 28. fxg7+ {[%emt 0:00:16]} N8xg7 {[%emt 0:00:39]} 29. Bd5 {[%emt 0:00:47]} Kg8 {[%emt 0:01:00]} 30. Rf6 {[%emt 0:03:19]} Qe8 {[%emt 0:00:41]} 31. Qd3 {[%emt 0:00:54]} Re7 {[%emt 0:00:28]} 32. Rh6 {[%emt 0:00:59]} Nf8 {[%emt 0:00:24]} 33. Rf1 {[%emt 0:01:34]} Rcc7 {[%emt 0:00:35]} 34. Rxd6 {[%emt 0:00:31]} Re2+ {[%emt 0:00:31]} 35. Kh1 {[%emt 0:00:14]} Rce7 {[%emt 0:00:08]} 36. Rdf6 {[%emt 0:00:58]} R2e3 {[%emt 0:00:46]} 37. Rxf7 {[%emt 0:00:58]} Rxf7 {[%emt 0:00:35]} 38. Rxf7 {[%emt 0:00:32]} Rxd3 1-0

[Event "46th GRE-chT Premier 2018"]
[Site "Rio Achaia"]
[Date "2018.07.11"]
[Round "2"]
[White "Papakonstantinou, Dimitrios"]
[Black "Sidiropoulos, Vasilis"]
[Result "1-0"]
[ECO "A08"]
[WhiteElo "2336"]
[BlackElo "1310"]
[Annotator "NA"]
[PlyCount "61"]
[EventDate "2018.07.10"]
[EventType "team-tourn"]
[EventCountry "GRE"]
[SourceTitle "playchess.com"]
[Source "ChessBase"]
[SourceQuality "1"]
[TimeControl "40/5400+30:1800+30"]

1. Nf3 {[%emt 0:00:00]} d5 {[%emt 0:00:00]} 2. g3 {[%emt 0:00:00]} c5 {[%emt 0:00:00]} 3. Bg2 {[%emt 0:00:07]} Nc6 {[%emt 0:00:05]} 4. O-O {[%emt 0:00:07]} e6 {[%emt 0:00:08]} 5. c4 {[%emt 0:00:13]} Nf6 {[%emt 0:00:24]} 6. b3 {[%emt 0:00:18]} Bd6 {[%emt 0:00:18]} 7. Bb2 {[%emt 0:00:09]} Qc7 {[%emt 0:00:31]} 8. e3 {[%emt 0:05:50]} b6 {[%emt 0:03:15]} 9. cxd5 {[%emt 0:02:47]} exd5 {[%emt 0:00:14]} 10. d4 {[%emt 0:01:09]} Ba6 {[%emt 0:15:43]} 11. Re1 {[%emt 0:00:45]} Nb4 {[%emt 0:01:25]} 12. Bf1 {[%emt 0:04:50]} Bxf1 {[%emt 0:01:15]} 13. Rxf1 {[%emt 0:00:22]} cxd4 {[%emt 0:12:16]} 14. Nxd4 {[%emt 0:00:05]} Be5 {[%emt 0:00:53]} 15. Na3 {[%emt 0:03:43]} Qe7 {[%emt 0:07:33]} 16. Nf5 {[%emt 0:04:49]} Qc7 {[%emt 0:02:16]} 17. Nb5 {[%emt 0:00:05]} Qb8 {[%emt 0:04:41]} 18. Ba3 {[%emt 0:02:24]} a5 {[%emt 0:04:54]} 19. Rc1 {[%emt 0:01:09]} Ne4 {[%emt 0:04:28]} 20. Bxb4 {[%emt 0:01:52]} axb4 {[%emt 0:00:18]} 21. Qxd5 {[%emt 0:00:13]} Nc3 {[%emt 0:06:03]} 22. Nxc3 {[%emt 0:03:09]} bxc3 23. f4 {[%emt 0:00:42]} Bf6 {[%emt 0:01:01]} 24. Nd6+ {[%emt 0:02:45]} Kd8 {[%emt 0:06:56]} 25. Nxf7+ {[%emt 0:00:51]} Ke7 {[%emt 0:00:11]} 26. Nxh8 {[%emt 0:00:25]} Qxh8 {[%emt 0:00:08]} 27. Qb7+ {[%emt 0:00:03]} Ke6 {[%emt 0:00:14]} 28. f5+ {[%emt 0:00:05]} Kd6 {[%emt 0:02:35]} 29. Rfd1+ {[%emt 0:00:06]} Kc5 {[%emt 0:00:14]} 30. Qc7+ {[%emt 0:00:57]} Kb5 {[%emt 0:01:37]} 31. Qc4+ {[%emt 0:00:05]} 1-0

[Event "46th GRE-chT Premier 2018"]
[Site "Rio Achaia"]
[Date "2018.07.11"]
[Round "2"]
[White "Naoum, Spyridon"]
[Black "Grigoriadis, Mihail"]
[Result "0-1"]
[ECO "E97"]
[WhiteElo "2335"]
[BlackElo "2236"]
[Annotator "NA"]
[PlyCount "120"]
[EventDate "2018.07.10"]
[EventType "team-tourn"]
[EventCountry "GRE"]
[SourceTitle "playchess.com"]
[Source "ChessBase"]
[SourceQuality "1"]
[TimeControl "40/5400+30:1800+30"]

1. d4 {[%emt 0:00:00]} Nf6 {[%emt 0:02:16]} 2. c4 {[%emt 0:02:25]} g6 {[%emt 0:00:05]} 3. Nc3 {[%emt 0:00:04]} Bg7 {[%emt 0:00:04]} 4. e4 {[%emt 0:01:52]} d6 {[%emt 0:00:09]} 5. Be2 {[%emt 0:00:06]} O-O {[%emt 0:00:09]} 6. Nf3 {[%emt 0:00:14]} e5 {[%emt 0:00:06]} 7. O-O {[%emt 0:00:20]} Nc6 {[%emt 0:00:05]} 8. d5 {[%emt 0:00:08]} Ne7 {[%emt 0:00:02]} 9. b4 {[%emt 0:01:49]} Ne8 {[%emt 0:00:53]} 10. Ba3 {[%emt 0:06:32]} h6 {[%emt 0:00:50]} 11. Rc1 {[%emt 0:05:52]} f5 {[%emt 0:17:24]} 12. Nd2 {[%emt 0:03:20]} h5 {[%emt 0:29:04]} 13. c5 {[%emt 0:03:36]} Bh6 {[%emt 0:15:51]} 14. b5 {[%emt 0:18:19]} b6 {[%emt 0:00:34]} 15. cxd6 {[%emt 0:02:12]} cxd6 {[%emt 0:00:07]} 16. Rc2 {[%emt 0:04:39]} Bxd2 {[%emt 0:00:22]} 17. Qxd2 {[%emt 0:01:06]} f4 {[%emt 0:00:07]} 18. Nd1 {[%emt 0:07:27]} Bd7 {[%emt 0:05:48]} 19. f3 {[%emt 0:00:31]} g5 {[%emt 0:03:03]} 20. Nf2 {[%emt 0:00:40]} Rf7 {[%emt 0:00:46]} 21. Rd1 {[%emt 0:13:13]} Rg7 {[%emt 0:01:01]} 22. Rc6 {[%emt 0:07:51]} Nxc6 {[%emt 0:08:28]} 23. dxc6 {[%emt 0:00:23]} Be6 {[%emt 0:00:05]} 24. Bxd6 {[%emt 0:01:28]} Nxd6 {[%emt 0:00:07]} 25. Qxd6 {[%emt 0:00:03]} Qxd6 {[%emt 0:00:23]} 26. Rxd6 {[%emt 0:00:04]} Kf7 {[%emt 0:07:53]} 27. Rd5 {[%emt 0:02:44]} Ke7 {[%emt 0:02:35]} 28. Bc4 {[%emt 0:01:46]} Bxd5 {[%emt 0:00:06]} 29. exd5 {[%emt 0:00:03]} g4 {[%emt 0:01:13]} 30. Ne4 {[%emt 0:00:40]} Rg6 {[%emt 0:00:06]} 31. Kf2 {[%emt 0:00:37]} Rd8 {[%emt 0:01:04]} 32. a4 {[%emt 0:03:14]} Rdd6 {[%emt 0:02:14]} 33. Ke2 {[%emt 0:06:57]} Rg7 {[%emt 0:00:59]} 34. Kd3 {[%emt 0:00:35]} gxf3 {[%emt 0:00:51]} 35. gxf3 {[%emt 0:00:02]} Rgg6 {[%emt 0:00:54]} 36. Nc3 {[%emt 0:04:43]} Rdf6 {[%emt 0:00:49]} 37. Ne4 {[%emt 0:00:49]} Rf8 {[%emt 0:00:37]} 38. Bb3 {[%emt 0:00:34]} Rd8 {[%emt 0:00:41]} 39. Nd2 {[%emt 0:01:34]} Rg2 {[%emt 0:00:40]} 40. Ne4 {[%emt 0:00:00]} Rg6 {[%emt 0:00:00]} 41. a5 {[%emt 0:15:04]} Rg2 {[%emt 0:02:19]} 42. axb6 {[%emt 0:02:25]} axb6 {[%emt 0:00:01]} 43. c7 {[%emt 0:02:02]} Rc8 {[%emt 0:01:04]} 44. d6+ {[%emt 0:02:11]} Kd7 {[%emt 0:00:05]} 45. Bd5 {[%emt 0:02:26]} Rxc7 {[%emt 0:00:11]} 46. dxc7 {[%emt 0:00:04]} Rxh2 {[%emt 0:00:06]} 47. Nf6+ {[%emt 0:05:58]} Kxc7 {[%emt 0:00:09]} 48. Ke4 {[%emt 0:00:02]} Kd6 {[%emt 0:02:07]} 49. Bc6 {[%emt 0:03:04]} h4 {[%emt 0:00:59]} 50. Kf5 {[%emt 0:01:04]} Rg2 {[%emt 0:00:11]} 51. Ne4+ {[%emt 0:00:16]} Ke7 {[%emt 0:00:28]} 52. Nf6 {[%emt 0:00:39]} h3 {[%emt 0:00:42]} 53. Ng4 {[%emt 0:00:01]} Kd6 {[%emt 0:00:14]} 54. Be4 {[%emt 0:00:39]} h2 {[%emt 0:00:09]} 55. Nxh2 {[%emt 0:00:01]} Rxh2 {[%emt 0:00:06]} 56. Kf6 {[%emt 0:00:24]} Re2 {[%emt 0:00:17]} 57. Bc6 {[%emt 0:00:07]} Kc5 {[%emt 0:01:30]} 58. Kf5 {[%emt 0:00:05]} Kd4 {[%emt 0:00:06]} 59. Kg4 {[%emt 0:00:25]} Re3 {[%emt 0:00:42]} 60. Kf5 {[%emt 0:00:20]} e4 {[%emt 0:00:48] Ke5+} 0-1